fUSD/lending_fUSD_20260527
["ID","MTS","AMOUNT","RATE_DAILY","PERIOD"]
[423151212,1779893675000,-169.254855,0.00039605,30]
[423151215,1779893675000,-9679035.08081791,0.00039608,30]
[423151214,1779893675000,-191.183155,0.00039605,30]
[423151216,1779893675000,-77325.00000002,0.00039608,30]
[423151218,1779893675000,-104.79563567,0.00039608,30]
[423151217,1779893675000,-191.183155,0.00039428,30]
[423151203,1779893675000,-169.254848,0.00039605,30]
[423151199,1779893675000,-622.19861,0.00039605,28]
[423151207,1779893675000,-296.770764,0.00039605,30]
[423151200,1779893675000,-151.0,0.00039605,30]
[423151186,1779893675000,-277.567993,0.00039605,30]
[423151202,1779893675000,-151.0,0.00039605,30]
[423151190,1779893675000,-170.946465,0.00039605,30]
[423151188,1779893675000,-277.567997,0.00039605,30]
[423151191,1779893675000,-170.946458,0.00039605,30]
[423151187,1779893675000,-170.946465,0.00039605,30]
[423151185,1779893675000,-170.946465,0.00039605,30]
[423151192,1779893675000,-622.198614,0.00039605,28]
[423151184,1779893675000,-170.946465,0.00039605,30]
[423151193,1779893675000,-622.198614,0.00039605,28]
[423151189,1779893675000,-170.946465,0.00039605,30]
[423151195,1779893675000,-622.198614,0.00039605,28]
[423151205,1779893675000,-151.0,0.00039605,30]
[423151194,1779893675000,-622.198614,0.00039605,28]
[423151196,1779893675000,-622.198614,0.00039605,28]
[423151201,1779893675000,-169.254848,0.00039605,30]
[423151182,1779893675000,-277.567993,0.00039605,30]
[423151228,1779893676000,-508.01423752,0.00039608,30]
[423151232,1779893676000,-5430.9681897,0.00039608,30]
[423151230,1779893676000,-7251.34721389,0.00039608,30]
[423151226,1779893676000,-191.183155,0.00039605,30]
[423151229,1779893676000,-191.183155,0.00039428,30]
[423151227,1779893676000,-191.183155,0.00039605,30]
[423151221,1779893676000,-278.19724598,0.00027397,10]
[423151223,1779893676000,-191.183155,0.00038356,30]
[423151224,1779893676000,-117.80365428,0.00039428,30]
[423151220,1779893676000,-1610.40275402,0.00027397,10]
[423151222,1779893676000,-310.28230408,0.00035666,2]
[423151219,1779893676000,-18225.59690017,0.00039608,30]
[423151231,1779893676000,-414358.13074346,0.00039608,30]
[423151225,1779893676000,-73.37950072,0.00039428,30]
[423151233,1779893676000,-208.97895572,0.000274,10]
[423151235,1779893676000,-208.97895572,0.0003,30]
[423151247,1779893676000,-1015.68634972,0.00039608,30]
[423151249,1779893676000,-7535.87915482,0.00039608,30]
[423151246,1779893676000,-191.183159,0.00039605,30]
[423151248,1779893676000,-718.97579586,0.00039608,30]
[423151242,1779893676000,-191.183155,0.00039605,30]
[423151239,1779893676000,-191.183155,0.00038356,30]
[423151244,1779893676000,-191.183155,0.00039605,30]
[423151234,1779893676000,-208.97895572,0.00029,7]
[423151243,1779893676000,-191.183155,0.00039605,30]
[423151245,1779893676000,-12417.92028762,0.00039608,30]
[423151236,1779893676000,-208.97895572,0.00033,120]
[423151240,1779893676000,-191.183155,0.00039428,30]
[423151237,1779893676000,-300.0,0.00035666,2]
[423151241,1779893676000,-191.183155,0.00039428,30]
[423151238,1779893676000,-300.0,0.00035666,2]
[423151255,1779893677000,-361.3543706,0.00035666,2]
[423151254,1779893677000,-300.0,0.00035666,2]
[423151253,1779893677000,-532564.53426462,0.00039608,30]
[423151251,1779893677000,-208.97895572,0.00036,30]
[423151252,1779893677000,-3228.78504428,0.00039608,30]
[423151250,1779893677000,-3794.16674931,0.00039608,30]
[423151256,1779893678000,-7094.04268053,0.00039608,30]
[423151257,1779893678000,-4006.16742656,0.00039608,30]
[423151258,1779893678000,-3751.10559981,0.00039608,30]
[423151259,1779893678000,-332.0,0.00039608,30]
[423151262,1779893678000,150.0,9.493e-05,2]
[423151263,1779893678000,150.0,9.587e-05,2]
[423151260,1779893678000,-90.67574323,0.00039608,30]
[423151261,1779893678000,-151.0,0.00015031,2]
[423151266,1779893679000,-166.66,0.00014619,2]
[423151264,1779893679000,-150.0,0.00013511,2]
[423151265,1779893679000,-1.0,0.00014619,2]
[423151267,1779893680000,-166.66,0.00013887,2]
[423151268,1779893681000,-166.66,0.00013887,2]
[423151271,1779893681000,-36.9,0.00013887,2]
[423151270,1779893681000,-129.76,0.00013887,2]
[423151269,1779893681000,-166.66,0.00013887,2]
[423151272,1779893682000,-166.66,0.00013887,2]
[423151273,1779893682000,-166.66,0.00013887,2]
[423151276,1779893683000,-166.66,0.00013887,2]
[423151274,1779893683000,-150.0,0.00013761,2]
[423151275,1779893683000,-16.66,0.00013887,2]
[423151277,1779893684000,-166.66,0.00013695,2]
[423151280,1779893684000,-166.66,0.0001351,2]
[423151279,1779893684000,-166.66,0.00013695,2]
[423151278,1779893684000,250.0,0.00010249,2]
[423151283,1779893685000,-166.66,0.0001351,2]
[423151282,1779893685000,-166.66,0.0001351,2]
[423151281,1779893685000,-166.66,0.0001351,2]
[423151284,1779893833000,250.0,0.00028082,120]
[423151285,1779893844000,283.0,9.594e-05,2]
[423151286,1779894003000,152.0,7.969e-05,2]
[423151287,1779894004000,-466.85,0.0001351,2]
[423151288,1779894005000,-466.85,0.00013513,2]
[423151292,1779894006000,-466.85,0.00013512,2]
[423151290,1779894006000,-300.0,0.00013512,2]
[423151291,1779894006000,-166.85,0.00013512,2]
[423151293,1779894007000,-466.85,0.00013512,2]
[423151295,1779894007000,-69.32777,0.00013512,2]
[423151294,1779894007000,-397.52223,0.00013442,2]
[423151300,1779894008000,-466.85,0.00013695,2]
[423151299,1779894008000,-403.57777,0.00013695,2]
[423151298,1779894008000,-63.27223,0.00013576,2]
[423151296,1779894008000,-30.12223,0.00013512,2]
[423151297,1779894008000,-436.72777,0.00013576,2]
[423151301,1779894008000,-466.85,0.00013695,2]
[423151303,1779894009000,-137.44777,0.00013848,2]
[423151302,1779894009000,-329.40223,0.00013695,2]
[423151309,1779894010000,-87.84777,0.0001473,2]
[423151308,1779894010000,-166.66,0.00014566,2]
[423151306,1779894010000,-150.0,0.00013847,2]
[423151307,1779894010000,-62.34223,0.00013848,2]
[423151305,1779894010000,-466.85,0.00013848,2]
[423151304,1779894010000,-466.85,0.00013848,2]
[423151310,1779894011000,-466.85,0.0001473,2]
[423151311,1779894011000,-466.85,0.0001473,2]
[423151312,1779894011000,-466.85,0.0001473,2]
[423151313,1779894012000,-466.85,0.0001473,2]
[423151314,1779894012000,-165.48223,0.0001473,2]
[423151317,1779894012000,-200.0,0.00014432,2]
[423151316,1779894012000,-134.70777,0.00014888,2]
[423151315,1779894012000,-166.66,0.00014872,2]
[423151318,1779894012000,-266.85,0.00014888,2]
[423151326,1779894013000,-185.71777,0.00015407,2]
[423151325,1779894013000,-166.66,0.00015179,2]
[423151324,1779894013000,-75.26,0.00015031,2]
[423151323,1779894013000,-39.21223,0.00014972,2]
[423151322,1779894013000,-466.85,0.00014972,2]
[423151321,1779894013000,-113.40777,0.00014972,2]
[423151319,1779894013000,-98.44223,0.00014888,2]
[423151320,1779894013000,-255.0,0.00014968,2]
[423151331,1779894014000,-466.85,0.00013824,2]
[423151330,1779894014000,-466.85,0.00013824,2]
[423151329,1779894014000,-466.85,0.00013824,2]
[423151328,1779894014000,-466.85,0.00013824,2]
[423151327,1779894014000,-466.85,0.00015407,2]
[423151332,1779894015000,-466.85,0.00013824,2]
[423151333,1779894015000,-466.85,0.00013824,2]
[423151334,1779894015000,481.79925587,7.969e-05,2]
[423151343,1779894336000,-541.0,0.00013512,2]
[423151344,1779894337000,-541.0,0.00013824,2]
[423151345,1779894338000,-541.0,0.00013824,2]
[423151347,1779894339000,-541.0,0.00013824,2]
[423151346,1779894339000,-541.0,0.00013824,2]
[423151348,1779894340000,-541.0,0.00013824,2]
[423151349,1779894341000,-541.0,0.00013824,2]
[423151352,1779894342000,-541.0,0.00013824,2]
[423151351,1779894342000,-541.0,0.00013824,2]
[423151350,1779894342000,-541.0,0.00013824,2]
[423151355,1779894343000,-541.0,0.00013824,2]
[423151354,1779894343000,-541.0,0.00013824,2]
[423151353,1779894343000,-541.0,0.00013824,2]
[423151356,1779894344000,-541.0,0.00013824,2]
[423151363,1779894345000,-41.0,0.00013823,2]
[423151362,1779894345000,-250.0,0.00013778,2]
[423151361,1779894345000,-250.0,0.00013512,2]
[423151360,1779894345000,151.0,9.1e-05,2]
[423151358,1779894345000,-221.19152794,0.00013512,2]
[423151359,1779894345000,-319.80847206,0.00013824,2]
[423151357,1779894345000,-541.0,0.00013824,2]
[423151364,1779894345000,-541.0,0.00013823,2]
[423151366,1779894346000,-150.0,0.00013781,2]
[423151365,1779894346000,-150.0,0.00013646,2]
[423151367,1779894346000,-241.0,0.00013823,2]
[423151368,1779894347000,-541.0,0.00013823,2]
[423151369,1779894347000,310.61799494,7.087e-05,2]
[423151370,1779894347000,241.14200506,7.087e-05,2]
[423151372,1779894347000,331.28401012,7.46e-05,2]
[423151371,1779894347000,220.47598988,7.46e-05,2]
[423151373,1779894347000,551.76,7.833e-05,2]
[423151375,1779894347000,551.76,8.579e-05,2]
[423151377,1779894347000,-22.2863412,0.00013823,2]
[423151376,1779894347000,-518.7136588,0.00013823,2]
[423151378,1779894347000,551.76,8.952e-05,2]
[423151379,1779894347000,551.76,9.325e-05,2]
[423151380,1779894347000,551.76,9.698e-05,2]
[423151381,1779894347000,551.76,0.00010071,2]
[423151382,1779894347000,551.76,0.00010444,2]
[423151374,1779894347000,551.76,8.206e-05,2]
[423151389,1779894348000,-484.3893492,0.0001119,2]
[423151390,1779894348000,-56.6106508,0.00011563,2]
[423151387,1779894348000,-473.6293492,0.00011068,2]
[423151388,1779894348000,-67.3706508,0.0001119,2]
[423151386,1779894348000,-530.24,0.00011068,2]
[423151384,1779894348000,152.0,9.8e-05,2]
[423151385,1779894348000,-10.76,0.00010817,2]
[423151383,1779894348000,-541.0,0.00010817,2]
[423151391,1779894349000,-495.1493492,0.00011563,2]
[423151392,1779894349000,-45.8506508,0.00011632,2]
[423151396,1779894349000,150.0,0.000252,120]
[423151394,1779894349000,-541.0,0.00011562,2]
[423151395,1779894349000,150.0,0.00028,120]
[423151393,1779894349000,-541.0,0.00011632,2]
[423151400,1779894350000,-423.0,0.00011632,2]
[423151399,1779894350000,-118.0,0.00011562,2]
[423151398,1779894350000,-541.0,0.00011562,2]
[423151397,1779894350000,227.14,0.000252,120]
[423151402,1779894514000,-10000.01,0.00011632,2]
[423151506,1779894677000,-551.76,0.00011936,2]
[423151505,1779894677000,-6249.2793492,0.00011632,2]
[423151508,1779894677000,-195.73,0.00012329,2]
[423151507,1779894677000,-551.76,0.00012309,2]
[423151509,1779894677000,-551.76,0.00012682,2]
[423151510,1779894677000,-1680.0,0.00012718,2]
[423151511,1779894677000,-219.7206508,0.00013055,2]
[423151512,1779894678000,-157.40509816,0.00012795,2]
[423151514,1779894678000,-551.76,0.00013428,2]
[423151515,1779894678000,-551.76,0.00013801,2]
[423151516,1779894678000,-500.0,0.00013823,2]
[423151513,1779894678000,-332.0393492,0.00013055,2]
[423151517,1779894678000,-500.0,0.00013823,2]
[423151518,1779894678000,-500.0,0.00013823,2]
[423151520,1779894678000,-500.0,0.00013823,2]
[423151524,1779894678000,-295.51,0.00013548,2]
[423151521,1779894678000,-500.0,0.00013823,2]
[423151522,1779894678000,-500.0,0.00013823,2]
[423151523,1779894678000,-4907.04555264,0.00013824,2]
[423151525,1779894678000,-9704.5,0.00013824,2]
[423151519,1779894678000,-500.0,0.00013823,2]
[423151526,1779894679000,-500.0,0.00013823,2]
[423151527,1779894679000,-594.18392586,0.00013823,2]
[423151528,1779894679000,-8905.82607414,0.00013824,2]
[423151529,1779894679000,-172.54,0.00013429,2]
[423151531,1779894679000,-9660.81,0.00013824,2]
[423151532,1779894679000,-328.1805114,0.00013824,2]
[423151530,1779894679000,-166.66,0.00013699,2]
[423151534,1779894680000,155.0,0.00028082,120]
[423151533,1779894680000,-10000.01,0.00013824,2]
[423151535,1779894680000,-3611.79157051,0.00013477,2]
[423151538,1779894680000,-10000.01,0.00013824,2]
[423151537,1779894680000,-874.51411907,0.00013824,2]
[423151540,1779894680000,-389.07287558,0.00013824,2]
[423151539,1779894680000,-861.71164943,0.00013824,2]
[423151536,1779894680000,-6388.21842949,0.00013824,2]
[423151544,1779894681000,-10000.01,0.00013824,2]
[423151543,1779894681000,-10000.01,0.00013824,2]
[423151542,1779894681000,-10000.01,0.00013824,2]
[423151541,1779894681000,-10000.01,0.00013824,2]
[423151547,1779894682000,-10000.01,0.00013824,2]
[423151546,1779894682000,-8000.01,0.00013824,2]
[423151545,1779894682000,-2000.0,0.00012925,2]
[423151550,1779894683000,-5785.8493492,0.00013824,2]
[423151549,1779894683000,-463.43,0.0001289,2]
[423151548,1779894683000,-6249.2793492,0.00013824,2]
[423151551,1779894684000,-5856.34901077,0.00012439,2]
[423151552,1779894684000,-392.93033843,0.00013415,2]
[423151553,1779894684000,-3011.32491726,0.00013245,2]
[423151554,1779894684000,-1701.14186502,0.00013415,2]
[423151556,1779894684000,-11607.76880972,0.00013824,2]
[423151557,1779894684000,-36720.75061768,0.00013824,2]
[423151555,1779894684000,-1536.81256692,0.00013824,2]
[423151570,1779894685000,-1848.29652225,0.00013823,2]
[423151571,1779894685000,-1848.29652225,0.00013823,2]
[423151569,1779894685000,-1848.29652225,0.00013823,2]
[423151567,1779894685000,-1848.29652225,0.00013823,2]
[423151565,1779894685000,-1848.29652225,0.00013823,2]
[423151568,1779894685000,-1848.29652225,0.00013823,2]
[423151564,1779894685000,-1848.29652225,0.00013823,2]
[423151563,1779894685000,-1848.29652225,0.00013823,2]
[423151562,1779894685000,-1143.9067398,0.00013823,2]
[423151558,1779894685000,-1848.29652225,0.00013823,2]
[423151560,1779894685000,-1848.29652225,0.00013823,2]
[423151559,1779894685000,-1848.29652225,0.00013823,2]
[423151572,1779894685000,-1848.29652225,0.00013823,2]
[423151566,1779894685000,-1848.29652225,0.00013823,2]
[423151573,1779894685000,-1848.29652225,0.00013823,2]
[423151561,1779894685000,-704.38978245,0.00013823,2]
[423151576,1779894685000,-111.22985246,0.00013823,2]
[423151574,1779894685000,-1848.29652225,0.00013823,2]
[423151585,1779894685000,-1848.29652225,0.00013823,2]
[423151587,1779894685000,-1848.29652225,0.00013823,2]
[423151584,1779894685000,-1848.29652225,0.00013823,2]
[423151583,1779894685000,-1848.29652225,0.00013823,2]
[423151589,1779894685000,-1848.29652225,0.00013823,2]
[423151590,1779894685000,-1848.29652225,0.00013823,2]
[423151586,1779894685000,-1848.29652225,0.00013823,2]
[423151582,1779894685000,-1848.29652225,0.00013823,2]
[423151580,1779894685000,-1848.29652225,0.00013823,2]
[423151581,1779894685000,-1848.29652225,0.00013823,2]
[423151579,1779894685000,-1848.29652225,0.00013823,2]
[423151578,1779894685000,-1848.29652225,0.00013823,2]
[423151577,1779894685000,-1737.06666979,0.00013823,2]
[423151575,1779894685000,-1848.29652225,0.00013823,2]
[423151588,1779894685000,-1848.29652225,0.00013823,2]
[423151595,1779894686000,-455.82692674,0.00013823,2]
[423151591,1779894686000,-1848.29652225,0.00013823,2]
[423151592,1779894686000,-1848.29652225,0.00013823,2]
[423151593,1779894686000,-1848.29652225,0.00013823,2]
[423151594,1779894686000,-1392.46959551,0.00013823,2]
[423151596,1779894686000,-1848.29652225,0.00013823,2]
[423151599,1779894686000,-743.40418149,0.00013823,2]
[423151598,1779894686000,-1104.89234076,0.00013823,2]
[423151603,1779894686000,-262.89351686,0.00013772,2]
[423151601,1779894686000,-1848.29652225,0.00013823,2]
[423151602,1779894686000,-1809.28212321,0.00013823,2]
[423151600,1779894686000,-1848.29652225,0.00013823,2]
[423151597,1779894686000,-1848.29652225,0.00013823,2]
[423151605,1779894687000,-1848.29652225,0.00013823,2]
[423151604,1779894687000,-39.01439904,0.00013823,2]
[423151607,1779894687000,-1848.29652225,0.00013823,2]
[423151608,1779894687000,-402.48186655,0.00013823,2]
[423151609,1779894687000,-1445.8146557,0.00013823,2]
[423151610,1779894687000,-1848.29652225,0.00013823,2]
[423151611,1779894687000,-1848.29652225,0.00013823,2]
[423151612,1779894687000,-1106.871649,0.00013823,2]
[423151606,1779894687000,-1848.29652225,0.00013823,2]
[423151616,1779894688000,-1838.56864583,0.00013823,2]
[423151613,1779894688000,-1200.0,0.00012438,2]
[423151614,1779894688000,-300.0,0.00012438,2]
[423151619,1779894688000,-792.0,0.00013681,2]
[423151615,1779894688000,-741.42487325,0.00013823,2]
[423151617,1779894688000,-1838.56864583,0.00013823,2]
[423151620,1779894688000,-5457.2793492,0.00013814,2]
[423151618,1779894688000,-330.71718429,0.00013823,2]
[423151623,1779894689000,-1507.85146154,0.00013823,2]
[423151624,1779894689000,-801.65289598,0.00013823,2]
[423151621,1779894689000,-500.0,0.00012593,2]
[423151622,1779894689000,-3439.77499168,0.000128,2]
[423151672,1779894690000,-500.0,0.00019506,2]
[423151671,1779894690000,-619.47,0.00019411,2]
[423151661,1779894690000,-350.0,0.00018,2]
[423151657,1779894690000,-17527.54365581,0.00017019,2]
[423151653,1779894690000,-2000.0,0.00016156,2]
[423151678,1779894690000,-228.0,0.0002,2]
[423151658,1779894690000,-226.26,0.00017537,2]
[423151663,1779894690000,-1360.8,0.0001841,2]
[423151655,1779894690000,-226.26,0.00016701,2]
[423151659,1779894690000,-2000.0,0.00017771,2]
[423151656,1779894690000,-295.51,0.00016935,2]
[423151660,1779894690000,-46534.05303376,0.000179,2]
[423151667,1779894690000,-500.0,0.00018958,2]
[423151666,1779894690000,-500.0,0.00018684,2]
[423151670,1779894690000,-2000.0,0.00019387,2]
[423151665,1779894690000,-295.51,0.00018628,2]
[423151664,1779894690000,-500.0,0.0001841,2]
[423151668,1779894690000,-226.26,0.00019207,2]
[423151669,1779894690000,-500.0,0.00019232,2]
[423151673,1779894690000,-17527.54365573,0.00019517,2]
[423151677,1779894690000,-169.39016287,0.0002,2]
[423151652,1779894690000,-300.0,0.00016,2]
[423151675,1779894690000,-510.3,0.00019716,2]
[423151679,1779894690000,-229.0,0.0002,2]
[423151680,1779894690000,-424.0,0.0002,2]
[423151662,1779894690000,-226.26,0.00018372,2]
[423151651,1779894690000,-159.0,0.00016,2]
[423151627,1779894690000,-93528.93162347,0.00013824,2]
[423151650,1779894690000,-226.26,0.00015866,2]
[423151682,1779894690000,-157.0,0.0002,2]
[423151625,1779894690000,-150.0,0.00011283,2]
[423151626,1779894690000,-8452.62225973,0.00013724,2]
[423151628,1779894690000,-1291.05,0.00013824,2]
[423151631,1779894690000,-134107.63998884,0.00013885,2]
[423151630,1779894690000,-12232.0,0.00013879,2]
[423151634,1779894690000,-6530.11288804,0.00014021,2]
[423151629,1779894690000,-166.66,0.00013836,2]
[423151632,1779894690000,-166.66,0.00013973,2]
[423151633,1779894690000,-250.0,0.00014,2]
[423151636,1779894690000,-9656.4418717,0.00014085,2]
[423151647,1779894690000,-172.54,0.00014772,2]
[423151635,1779894690000,-150.0,0.00014071,2]
[423151638,1779894690000,-2440.1900026,0.00014085,2]
[423151639,1779894690000,-407.2316613,0.00014085,2]
[423151646,1779894690000,-2000.0,0.0001454,2]
[423151637,1779894690000,-12978.9849061,0.00014085,2]
[423151640,1779894690000,-172.54,0.000141,2]
[423151641,1779894690000,-166.66,0.0001411,2]
[423151644,1779894690000,-166.66,0.00014247,2]
[423151645,1779894690000,-166.66,0.00014384,2]
[423151642,1779894690000,-551.76,0.00014174,2]
[423151643,1779894690000,-200.0,0.00014185,2]
[423151648,1779894690000,-295.51,0.00015241,2]
[423151649,1779894690000,-154.0951525,0.00015407,2]
[423151654,1779894690000,-1360.8,0.00016438,2]
[423151681,1779894690000,-153.0,0.0002,2]
[423151717,1779894690000,-228.0,0.00022,2]
[423151683,1779894690000,-335.0,0.0002,2]
[423151713,1779894690000,-743.69,0.00021917,2]
[423151720,1779894690000,-153.0,0.00022,2]
[423151719,1779894690000,-424.0,0.00022,2]
[423151716,1779894690000,-165.0,0.00022,2]
[423151714,1779894690000,-394.76550673,0.00021918,2]
[423151715,1779894690000,-4605.23449327,0.00021918,2]
[423151718,1779894690000,-229.0,0.00022,2]
[423151721,1779894690000,-163.25696447,0.00022,2]
[423151722,1779894690000,-335.0,0.00022,2]
[423151723,1779894690000,-157.0,0.00022,2]
[423151726,1779894690000,-17527.54365573,0.00022016,2]
[423151732,1779894690000,-165.0,0.00023,2]
[423151724,1779894690000,-169.06319664,0.00022,2]
[423151725,1779894690000,-351.0,0.00022,2]
[423151731,1779894690000,-226.26,0.00022547,2]
[423151729,1779894690000,-166.66,0.00022448,2]
[423151727,1779894690000,-500.0,0.00022252,2]
[423151728,1779894690000,-1360.8,0.00022353,2]
[423151730,1779894690000,-185.07,0.00022466,2]
[423151734,1779894690000,-229.0,0.00023,2]
[423151733,1779894690000,-228.0,0.00023,2]
[423151736,1779894690000,-153.0,0.00023,2]
[423151737,1779894690000,-335.0,0.00023,2]
[423151735,1779894690000,-424.0,0.00023,2]
[423151676,1779894690000,-165.0,0.0002,2]
[423151712,1779894690000,-166.66,0.00021753,2]
[423151710,1779894690000,-208.699696,0.00021479,2]
[423151738,1779894690000,-157.0,0.00023,2]
[423151704,1779894690000,-157.0,0.00021,2]
[423151711,1779894690000,-226.26,0.00021712,2]
[423151684,1779894690000,-157.0,0.0002,2]
[423151688,1779894690000,-226.26,0.00020042,2]
[423151697,1779894690000,-2120.73,0.00020622,2]
[423151696,1779894690000,-1035.7,0.00020548,2]
[423151687,1779894690000,-400.0,0.0002,2]
[423151686,1779894690000,-351.0,0.0002,2]
[423151685,1779894690000,-154.0,0.0002,2]
[423151689,1779894690000,-9656.4418717,0.00020188,2]
[423151695,1779894690000,-1360.8,0.00020381,2]
[423151692,1779894690000,-407.2316613,0.00020188,2]
[423151691,1779894690000,-2440.1900026,0.00020188,2]
[423151693,1779894690000,-10155.32192017,0.000203,2]
[423151674,1779894690000,-1000.0,0.00019548,2]
[423151694,1779894690000,-295.51,0.00020322,2]
[423151690,1779894690000,-12978.9849061,0.00020188,2]
[423151709,1779894690000,-166.66,0.00021058,2]
[423151706,1779894690000,-157.0,0.00021,2]
[423151703,1779894690000,-153.0,0.00021,2]
[423151708,1779894690000,-351.0,0.00021,2]
[423151701,1779894690000,-229.0,0.00021,2]
[423151707,1779894690000,-154.0,0.00021,2]
[423151705,1779894690000,-335.0,0.00021,2]
[423151699,1779894690000,-165.0,0.00021,2]
[423151700,1779894690000,-228.0,0.00021,2]
[423151698,1779894690000,-226.26,0.00020877,2]
[423151702,1779894690000,-424.0,0.00021,2]
[423151775,1779894691000,-215.46156935,0.00027,3]
[423151778,1779894691000,-1467.38,0.00027397,2]
[423151777,1779894691000,-1500.0,0.00027397,2]
[423151774,1779894691000,-215.46156935,0.00027,3]
[423151771,1779894691000,-2440.1900026,0.00026292,2]
[423151772,1779894691000,-407.2316613,0.00026292,2]
[423151769,1779894691000,-9656.4418717,0.00026292,2]
[423151767,1779894691000,-179.68136386,0.00025454,2]
[423151770,1779894691000,-12978.9849061,0.00026292,2]
[423151773,1779894691000,-1360.8,0.00026296,2]
[423151776,1779894691000,-17527.54365573,0.00027012,2]
[423151785,1779894691000,-1360.8,0.00028267,2]
[423151780,1779894691000,-696.16,0.00027397,10]
[423151782,1779894691000,-483.45,0.00027397,10]
[423151781,1779894691000,-580.13,0.00027397,10]
[423151779,1779894691000,-835.39,0.00027397,10]
[423151783,1779894691000,-506.0,0.0002747,4]
[423151784,1779894691000,-215.46156935,0.00028,7]
[423151787,1779894691000,-500.0,0.00028795,2]
[423151791,1779894691000,-263.39072739,0.000295,2]
[423151790,1779894691000,-370.65417125,0.000295,2]
[423151794,1779894691000,-1000.0,0.000297,7]
[423151792,1779894691000,-933.69403119,0.000295,2]
[423151765,1779894691000,-355.0,0.00025,2]
[423151786,1779894691000,-1000.0,0.00028352,2]
[423151768,1779894691000,-500.0,0.00026,2]
[423151752,1779894691000,-1360.8,0.00024324,2]
[423151761,1779894691000,-233.65507168,0.00025,2]
[423151741,1779894691000,-166.66,0.00023838,2]
[423151743,1779894691000,-165.0,0.00024,2]
[423151740,1779894691000,-166.66,0.00023143,2]
[423151739,1779894691000,-351.0,0.00023,2]
[423151742,1779894691000,-619.47,0.00023849,2]
[423151745,1779894691000,-229.0,0.00024,2]
[423151744,1779894691000,-228.0,0.00024,2]
[423151746,1779894691000,-424.0,0.00024,2]
[423151754,1779894691000,-166.66,0.00024533,2]
[423151749,1779894691000,-170.0,0.00024,2]
[423151751,1779894691000,-500.0,0.00024055,2]
[423151750,1779894691000,-351.0,0.00024,2]
[423151748,1779894691000,-335.0,0.00024,2]
[423151747,1779894691000,-153.0,0.00024,2]
[423151753,1779894691000,-17527.54365573,0.00024514,2]
[423151755,1779894691000,-1000.0,0.00024658,2]
[423151758,1779894691000,-175.28,0.00024658,2]
[423151762,1779894691000,-431.79515969,0.00025,2]
[423151760,1779894691000,-245.2305698,0.00025,2]
[423151756,1779894691000,-163.11,0.00024658,2]
[423151788,1779894691000,-596.3382509,0.000295,2]
[423151757,1779894691000,-195.1,0.00024658,2]
[423151759,1779894691000,-172.7893954,0.00025,2]
[423151763,1779894691000,-155.4153596,0.00025,2]
[423151764,1779894691000,-350.68705661,0.00025,2]
[423151766,1779894691000,-506.0,0.00025082,2]
[423151793,1779894691000,-17527.54365573,0.00029511,2]
[423151827,1779894691000,-317.39,0.00031,20]
[423151789,1779894691000,-7227.29281568,0.000295,2]
[423151832,1779894691000,-226.80449042,0.000312,2]
[423151824,1779894691000,-157.0,0.00030805,30]
[423151829,1779894691000,-215.46156935,0.00031157,2]
[423151825,1779894691000,-154.0,0.00030805,30]
[423151826,1779894691000,-351.0,0.00030805,30]
[423151830,1779894691000,-160.0,0.00031157,2]
[423151828,1779894691000,-200.0,0.00031096,2]
[423151831,1779894691000,-162.28206899,0.000312,2]